[Event "4NCL 2023-2024"]
[Site "Daventry"]
[Date "2024.05.06"]
[Round "11.13"]
[White "Ledger, Dave J"]
[Black "Speelman, Jon S"]
[Result "0-1"]
[ECO "C10"]
[WhiteElo "2211"]
[BlackElo "2497"]
[Annotator "TA"]
[PlyCount "54"]
[EventDate "2023.11.11"]
[EventType "team-tourn"]
[EventCountry "ENG"]
[SourceTitle "playchess.com"]
[Source "ChessBase"]
[SourceQuality "1"]
[TimeControl "40/6000+30:3000+30"]

{[%evp 9,54,26,9,0,21,9,10,0,4,-18,22,18,15,-83,-78,-110,-102,-130,-122,-131,-139,-168,-168,-177,-178,-172,-123,-251,-242,-263,-182,-272,-251,-395,-399,-360,-248,-248,-270,-260,-207,-192,-156,-307,-208,-996,-977]} 1. e4 {[%emt 0:00:06]} e6 {[%emt 0:00:12]} 2. d4 {[%emt 0:00:07]} d5 {[%emt 0:00:06]} 3. Nc3 {[%emt 0:00:29]} a6 {[%emt 0:00:08]} 4. h4 {[%emt 0:08:33]} dxe4 {[%emt 0:02:18]} 5. Nxe4 {[%emt 0:00:19]} Nd7 {[%emt 0:00:04][%cal Bb8d7,Bd7f6,Bf6d5][%mdl 32]} 6. Nf3 {[%emt 0:00:53]} Ngf6 {[%emt 0:00:12]} 7. Nxf6+ {[%emt 0:03:35]} Nxf6 {[%emt 0:00:06]} 8. Bg5 {[%emt 0:02:25][%cal Bc1g5,Bg5f4,Bf4e5][%mdl 32] The position is equal.} h6 {[%emt 0:02:36]} 9. Bf4 {[%emt 0:02:39]} Nd5 {[%emt 0:07:39]} 10. Be5 {[%emt 0:03:05]} f6 {[%emt 0:04:06] [#]} 11. Bd3 {[%emt 0:03:25]} Bb4+ $17 {[%emt 0:01:27][%cal Bf8b4,Bb4c3,Bc3d4][%mdl 32]} 12. c3 {[%emt 0:00:57]} Nxc3 {[%emt 0:00:13]} 13. Bg6+ {[%emt 0:02:55]} Ke7 {[%emt 0:00:08]} 14. bxc3 {[%emt 0:01:28]} Bxc3+ {[%emt 0:00:06]} 15. Ke2 {[%emt 0:06:32]} fxe5 {[%emt 0:00:29]} 16. Rc1 {[%emt 0:02:32]} Bxd4 {[%emt 0:06:05]} ({But not} 16... exd4 17. Qb3 Qd5 18. Rxc3 dxc3 19. Qxc3 Qxa2+ 20. Ke3 $15) 17. Qc2 {[%emt 0:06:07]} Qd6 {[%emt 0:00:40]} ({Black should try} 17... c5 $19 {...Bd7 would now be deadly.} 18. Rh3 b6) 18. h5 {[%emt 0:04:23] This costs White the game.} (18. Qxc7+ $17 {keeps fighting.} Bd7 19. Qxd6+ Kxd6 20. Rhd1) 18... Bd7 $19 {[%emt 0:01:21]} 19. Kf1 {[%emt 0:01:22]} Bc6 {[%emt 0:07:17] And now ...Raf8 would win.} 20. Rh3 {[%emt 0:02:20]} (20. Be4 $142) 20... Raf8 {[%emt 0:01:19]} 21. Be4 {[%emt 0:06:46]} (21. Nxd4 {was called for.} exd4 (21... Qxd4 $2 22. Rd3 $19) 22. Be4) 21... Bxe4 {[%emt 0:00:53]} 22. Qxe4 {[%emt 0:00:04][%cal Of3d4]} c6 {[%emt 0:00:05]} 23. Rg3 {[%emt 0:11:11]} Rf7 {[%emt 0:00:09][%cal Od4f2] [#] Threatens to win with ...Bxf2!} 24. Rd1 {[%emt 0:04:56]} Qc5 {[%emt 0:06:20]} 25. Qh4+ {[%emt 0:04:44]} Kd6 {[%emt 0:01:55] White must now prevent ...Rhf8.} 26. Rg6 $2 {[%emt 0:03:28]} (26. Nxd4 $17 exd4 27. Qxd4+ Qxd4 28. Rxd4+ Kc5 29. Rdg4) 26... Kc7 {[%emt 0:01:55] Strongly threatening ...Qc2.} 27. Rxe6 $2 {[%emt 0:03:10]} (27. Nxd4 exd4 28. Qxd4 Qxd4 (28... Qxh5 29. Rxg7 Rhf8 30. Rxf7+ Qxf7 31. Kg1 $17) 29. Rxd4) 27... Qc4+ {[%emt 0:00:19] Weighted Error Value: White=0.61/Black=0.30.  Mistake:       	White=6     	Black=1      Inaccurate:     	White=1     	Black=4      OK:         	White=3     	Black=9      Best:        	---       	Black=4} 0-1

[Event "4NCL 2023-2024"]
[Site "Daventry"]
[Date "2024.05.06"]
[Round "11.14"]
[White "Turner, Matthew J"]
[Black "Nelson, Jonathan P"]
[Result "1-0"]
[ECO "B08"]
[WhiteElo "2454"]
[BlackElo "2133"]
[Annotator "TA"]
[PlyCount "81"]
[EventDate "2023.11.11"]
[EventType "team-tourn"]
[EventCountry "ENG"]
[SourceTitle "playchess.com"]
[Source "ChessBase"]
[SourceQuality "1"]
[TimeControl "40/6000+30:3000+30"]

{[%evp 14,81,59,55,50,-8,38,39,51,36,67,54,64,43,90,97,102,67,66,64,67,65,60,7,72,42,33,0,127,116,128,77,85,74,206,114,109,78,267,259,314,275,466,460,465,461,428,404,410,421,419,420,415,408,785,759,755,699,1213,410,418,426,426,418,418,408,468,457,493,484]} 1. d4 {[%emt 0:00:06]} Nf6 {[%emt 0:00:24]} 2. Nc3 {[%emt 0:01:41]} d6 {[%emt 0:00:58]} 3. e4 {[%emt 0:00:46]} g6 {[%emt 0:00:39]} 4. Nf3 {[%emt 0:00:48]} Bg7 {[%emt 0:00:20]} 5. h3 {[%emt 0:04:40]} O-O {[%emt 0:01:48]} 6. Be3 {[%emt 0:00:43]} c6 {[%emt 0:05:12]} 7. a4 {[%emt 0:02:29]} a5 {[%emt 0:02:30]} 8. Be2 {[%emt 0:01:18]} Na6 {[%emt 0:01:13]} 9. e5 {[%emt 0:03:15]} (9. Qd2 $14) 9... Nd5 {[%emt 0:02:27]} (9... dxe5 $11 10. dxe5 Qxd1+ 11. Rxd1 Nd7) 10. Nxd5 $14 {[%emt 0:00:35]} cxd5 {[%emt 0:00:03] White is slightly better.} 11. c3 {[%emt 0:03:02]} Bf5 {[%emt 0:17:05]} 12. O-O {[%emt 0:03:39]} Be4 {[%emt 0:08:24]} 13. e6 {[%emt 0:07:42]} Bf5 {[%emt 0:09:38]} (13... fxe6 $14 14. Nd2 e5) 14. exf7+ $16 {[%emt 0:03:21]} Rxf7 {[%emt 0:01:02]} 15. Ng5 {[%emt 0:04:42][%cal Og2g4] [#] Strongly threatening g4!} Rf8 {[%emt 0:07:54]} 16. g4 {[%emt 0:05:26]} Bd7 {[%emt 0:02:16]} 17. f4 {[%emt 0:00:45]} Nc7 {[%emt 0:02:37]} 18. Bd3 {[%emt 0:02:05]} (18. Qd2 $14) 18... e6 {[%emt 0:06:39]} (18... e5 $11 {remains equal.}) 19. Qe1 {[%emt 0:02:46] Hoping for Qh4.} Qe7 {[%emt 0:01:45]} 20. Qg3 {[%emt 0:02:56]} Bf6 {[%emt 0:02:46]} (20... e5 $11 {keeps the balance.}) 21. Nf3 $36 {[%emt 0:04:54][%mdl 2048] White is really pushing.} b5 {[%emt 0:17:04]} 22. h4 {[%emt 0:01:34]} (22. Rae1 $142) 22... bxa4 {[%emt 0:00:13]} 23. Rf2 {[%emt 0:01:28]} Rf7 {[%emt 0:02:58]} (23... Qg7 $16) 24. h5 {[%emt 0:01:35]} (24. g5 $18 Bg7 25. h5) 24... gxh5 {[%emt 0:00:14] [#]} 25. g5 {[%emt 0:00:22] White has more active pieces.} (25. gxh5+ Rg7 26. Ng5 h6 $11) 25... Bh8 {[%emt 0:00:10]} (25... Rg7 $16 {was called for.}) 26. Re1 {[%emt 0:02:17]} Qf8 {[%emt 0:05:34]} 27. Nh4 {[%emt 0:02:10] aiming for g6.} Rg7 $2 {[%emt 0:03:42]} (27... Rf5 {was worth a try.} 28. Bd2 Rf7) 28. f5 $18 {[%emt 0:04:14]} exf5 {[%emt 0:02:39]} 29. Bxf5 {[%emt 0:00:13]} (29. Nxf5 Bxf5 30. Bxf5 (30. Rxf5 Rf7 $18) 30... Qe8 $18) 29... Bxf5 {[%emt 0:00:15]} 30. Nxf5 {[%emt 0:00:13][%cal Rf5h6]} Rg6 {[%emt 0:00:09]} 31. Bd2 {[%emt 0:03:07]} Re8 {[%emt 0:00:56] Prevents Ne7+.} 32. Rxe8 {[%emt 0:02:05]} (32. Ne7+ Qxe7 33. Rxe7 Rxe7 $18) 32... Nxe8 {[%emt 0:00:50]} 33. Kf1 {[%emt 0:02:53] Nh6+ would now be deadly.} Nf6 {[%emt 0:04:38]} (33... Bf6 $142 34. Qg2 (34. Qh4 Ng7 $18) 34... Qf7) 34. Qf3 {[%emt 0:08:06]} (34. Qxd6 $2 Qxd6 35. Nxd6 a3 (35... Ng4 $2 36. Re2 $19) 36. bxa3 (36. gxf6 $2 a2 $19) 36... Ng4 $19) (34. Nxd6 h6 $11) 34... Qe8 {[%emt 0:01:56]} 35. gxf6 {[%emt 0:00:20]} Qb5+ {[%emt 0:00:08]} 36. Qe2 {[%emt 0:00:12]} (36. Re2 $142 Bxf6 37. Nxd6 (37. Qxh5 Qd3 $18)) 36... Qxe2+ {[%emt 0:00:25]} 37. Kxe2 {[%emt 0:00:05]} Bxf6 {[%emt 0:00:12]} 38. Ne3 {[%emt 0:01:10]} ({Not} 38. Nxd6 Bh4 39. Rh2 Bg3 40. Rxh5 Bxd6 41. Rxd5 Rg2+ 42. Kd3 Rg3+ 43. Kc2 Rg6 44. Rxa5 Rg2 $18) 38... Bg5 {[%emt 0:00:32]} 39. Nxd5 {[%emt 0:00:25]} Re6+ {[%emt 0:00:05]} 40. Kd3 {[%emt 0:00:28]} Bxd2 {[%emt 0:00:06]} 41. Rxd2 {[%emt 0:50:26] Weighted Error Value: White=0.48/Black=0.53.  Loses game:     	---       	Black=1      Mistake:       	White=4     	Black=7      Inaccurate:     	White=3     	Black=1      OK:         	White=11    	Black=8      Best:        	White=3     	Black=1} (41. Kxd2 Kg7 42. Nf4 Rh6 $18) 1-0

[Event "4NCL 2023-2024"]
[Site "Daventry"]
[Date "2024.05.06"]
[Round "11.15"]
[White "Eames, Robert S"]
[Black "Gasanov, Eldar"]
[Result "0-1"]
[ECO "B57"]
[WhiteElo "2175"]
[BlackElo "2475"]
[Annotator "TA"]
[PlyCount "54"]
[EventDate "2023.11.11"]
[EventType "team-tourn"]
[EventCountry "ENG"]
[SourceTitle "playchess.com"]
[Source "ChessBase"]
[SourceQuality "1"]
[TimeControl "40/6000+30:3000+30"]

{[%evp 17,54,23,20,35,69,64,48,0,0,0,0,-27,37,0,9,0,39,9,46,-177,-144,-202,-181,-162,-175,-195,-207,-261,-248,-276,-258,-457,-475,-477,-468,-483,-467,-488,-474]} 1. e4 {[%emt 0:00:04]} c5 {[%emt 0:00:20]} 2. Nf3 {[%emt 0:00:09]} Nc6 {[%emt 0:00:44]} 3. d4 {[%emt 0:00:21]} cxd4 {[%emt 0:00:08]} 4. Nxd4 {[%emt 0:00:05]} Nf6 {[%emt 0:00:41]} 5. Nc3 {[%emt 0:00:21]} d6 {[%emt 0:01:05]} 6. Bc4 {[%emt 0:00:27]} Qb6 {[%emt 0:00:27]} 7. Nb3 {[%emt 0:00:43]} e6 {[%emt 0:00:19]} 8. Bf4 {[%emt 0:00:20]} Ne5 {[%emt 0:00:37][%cal Bc6e5,Be5c4,Bc4b2][%mdl 32]} 9. Be2 {[%emt 0:00:15]} a6 {[%emt 0:02:01]} 10. g4 {[%emt 0:03:23][%cal Bg2g4,Bg4g5][%mdl 32]} Qc7 {[%emt 0:07:13]} 11. g5 $1 {[%emt 0:01:31]} Nfd7 {[%emt 0:04:43]} 12. Bg3 {[%emt 0:03:30]} (12. a4 $14) 12... b5 $11 {[%emt 0:02:11]} 13. f4 {[%emt 0:02:51]} Nc4 {[%emt 0:01:03]} 14. Qd4 {[%emt 0:00:40]} Bb7 {[%emt 0:08:35]} ({Black should play} 14... Nxb2 $11 15. O-O Na4 16. Nxa4 bxa4 17. Qxa4 Be7) 15. O-O {[%emt 0:07:20]} Rc8 {[%emt 0:07:26]} 16. a4 $1 {[%emt 0:24:11]} Nxb2 {[%emt 0:20:09] [#]} 17. Nxb5 {[%emt 0:00:26]} Qxc2 {[%emt 0:07:33]} 18. Na5 $2 {[%emt 0:13:06] This move loses the game for White.} (18. Qa7 $1 $14 {was the only good move.} Qxe2 (18... axb5 $2 {too greedy.} 19. Qxb7 Rb8 20. Rac1 $18) (18... Qxe4 $2 {is the wrong capture.} 19. Bf3 $18) 19. Qxb7) 18... Qxe2 $40 {[%emt 0:10:27][%mdl 128] Black attacks with force.} 19. Nxb7 {[%emt 0:01:09]} (19. Nxd6+ $17 Bxd6 20. Nxb7) 19... axb5 $19 {[%emt 0:00:02]} 20. Rf2 {[%emt 0:03:55]} Qc4 {[%emt 0:04:59]} 21. Qxb2 {[%emt 0:00:33]} bxa4 {[%emt 0:01:44][%cal Oc8c7]} ({Inferior is} 21... Qxe4 22. Qxb5 Rc7 23. Rb1 $15) 22. e5 {[%emt 0:03:36]} dxe5 {[%emt 0:10:50]} 23. fxe5 {[%emt 0:00:16]} Rb8 {[%emt 0:01:55]} 24. Rc2 $2 {[%emt 0:05:24] [#]} (24. Rc1 Qd5 25. Nd6+ Bxd6 26. exd6) 24... Rxb7 $1 {[%emt 0:08:42] Black is clearly winning.} 25. Rxc4 {[%emt 0:03:16] Rc8+ would kill now.} Rxb2 {[%emt 0:00:09]} 26. Rc8+ {[%emt 0:00:09]} Ke7 {[%emt 0:00:03]} 27. Rxa4 {[%emt 0:00:17]} Rb8 {[%emt 0:02:00] Weighted Error Value: White=0.42/Black=0.13 (very precise) .  Loses game:     	White=1     	---        Mistake:       	White=3     	Black=1      Inaccurate:     	White=3     	Black=2      OK:         	White=4     	Black=10     Best:        	White=1     	Black=2      Strong:       	White=2     	---} 0-1

[Event "4NCL 2023-2024"]
[Site "Daventry"]
[Date "2024.05.06"]
[Round "11.16"]
[White "Toma, Katarzyna"]
[Black "Ledger, Stephen C"]
[Result "1/2-1/2"]
[ECO "B31"]
[WhiteElo "2204"]
[BlackElo "2000"]
[Annotator "RC"]
[PlyCount "58"]
[EventDate "2023.11.11"]
[EventType "team-tourn"]
[EventCountry "ENG"]
[SourceTitle "playchess.com"]
[Source "ChessBase"]
[SourceQuality "1"]
[TimeControl "40/6000+30:3000+30"]

1. e4 {[%emt 0:00:09]} c5 {[%emt 0:00:12]} 2. Nf3 {[%emt 0:00:15]} Nc6 {[%emt 0:00:17]} 3. Bb5 {[%emt 0:00:22]} g6 {[%emt 0:01:43]} 4. Bxc6 {[%emt 0:02:29]} dxc6 {[%emt 0:01:46]} 5. d3 {[%emt 0:00:23]} Bg7 {[%emt 0:00:34]} 6. h3 {[%emt 0:00:15]} Nf6 {[%emt 0:02:12]} 7. Nc3 {[%emt 0:00:38]} Nd7 {[%emt 0:03:15]} 8. Be3 {[%emt 0:01:33]} e5 {[%emt 0:01:27]} 9. Qd2 {[%emt 0:01:08]} Qe7 {[%emt 0:01:27]} 10. a3 {[%emt 0:02:48]} Nf8 {[%emt 0:06:00]} 11. O-O {[%emt 0:05:09]} Ne6 {[%emt 0:03:12]} 12. Ne2 {[%emt 0:01:18]} O-O {[%emt 0:05:37]} 13. Rae1 {[%emt 0:15:32]} b6 {[%emt 0:07:11]} 14. Nh2 {[%emt 0:09:47]} Nd4 {[%emt 0:05:45]} 15. f4 {[%emt 0:14:14]} Nxe2+ {[%emt 0:06:47]} 16. Rxe2 {[%emt 0:00:05]} exf4 {[%emt 0:00:17]} 17. Bxf4 {[%emt 0:00:04]} Be6 {[%emt 0:01:58]} 18. e5 {[%emt 0:03:08]} Qd7 {[%emt 0:08:57]} 19. Nf3 {[%emt 0:03:18]} Rae8 {[%emt 0:06:45]} 20. Rfe1 {[%emt 0:12:04]} Bd5 {[%emt 0:07:08]} 21. Ng5 {[%emt 0:09:02]} h6 {[%emt 0:13:48]} 22. Ne4 {[%emt 0:00:06]} Bxe4 {[%emt 0:00:50]} 23. Rxe4 {[%emt 0:00:06]} g5 {[%emt 0:01:20]} 24. Bg3 {[%emt 0:00:52]} f5 {[%emt 0:02:50]} 25. exf6 {[%emt 0:04:21]} Bxf6 {[%emt 0:00:43]} 26. Kh2 {[%emt 0:04:45]} Rxe4 {[%emt 0:02:48]} 27. Rxe4 {[%emt 0:00:05]} Re8 {[%emt 0:01:32]} 28. Rxe8+ {[%emt 0:03:01]} Qxe8 {[%emt 0:00:33]} 29. b3 {[%emt 0:00:10]} Qe6 {[%emt 0:03:09]} 1/2-1/2

[Event "4NCL 2023-2024"]
[Site "Daventry"]
[Date "2024.05.06"]
[Round "11.17"]
[White "Pert, Richard G"]
[Black "Roberson, Peter T"]
[Result "1-0"]
[ECO "D02"]
[WhiteElo "2413"]
[BlackElo "2426"]
[Annotator "TA"]
[PlyCount "79"]
[EventDate "2023.11.11"]
[EventType "team-tourn"]
[EventCountry "ENG"]
[SourceTitle "playchess.com"]
[Source "ChessBase"]
[SourceQuality "1"]
[TimeControl "40/6000+30:3000+30"]

{[%evp 11,79,1,9,16,31,5,17,10,27,3,5,-3,-2,4,12,-8,-13,0,0,0,14,0,31,-30,-28,-36,0,0,82,71,116,116,307,107,183,153,193,181,190,180,216,216,331,322,340,187,220,169,187,171,216,218,282,266,354,293,320,93,94,106,1641,1605,1393,1359,29986,29987,29986,29987,29988,29989]} 1. d4 {[%emt 0:00:03]} Nf6 {[%emt 0:00:37]} 2. Nf3 {[%emt 0:00:13]} d5 {[%emt 0:01:16]} 3. Bf4 {[%emt 0:00:10]} c5 {[%emt 0:04:24]} 4. e3 {[%emt 0:00:13]} Nc6 {[%emt 0:00:43]} 5. Nbd2 {[%emt 0:00:07]} e6 {[%emt 0:01:06]} 6. c3 {[%emt 0:00:48]} cxd4 {[%emt 0:00:58]} 7. exd4 {[%emt 0:05:09]} Nh5 {[%emt 0:00:25]} 8. Bg5 {[%emt 0:02:54]} f6 {[%emt 0:01:21]} (8... Qc7 {seems wilder.} 9. Ne5 g6 10. g4 f6) 9. Be3 {[%emt 0:01:14] The position is equal.} Bd6 {[%emt 0:02:11]} 10. Bb5 {[%emt 0:05:08][%cal Of3e5]} O-O {[%emt 0:12:50]} 11. O-O {[%emt 0:01:08]} Nf4 {[%emt 0:12:31]} 12. Re1 {[%emt 0:06:50]} Ne7 {[%emt 0:02:10]} 13. Nb3 {[%emt 0:19:14]} Nfg6 {[%emt 0:08:23]} 14. Bd3 {[%emt 0:04:57]} b6 {[%emt 0:04:37]} 15. a4 {[%emt 0:07:34]} Bc7 {[%emt 0:05:02]} 16. h4 {[%emt 0:13:42][%cal Oa4a5]} e5 {[%emt 0:13:17]} 17. Bxg6 {[%emt 0:09:43]} (17. dxe5 $1 $14 fxe5 18. h5) 17... Nxg6 $11 {[%emt 0:15:15]} 18. h5 {[%emt 0:00:07]} Nf4 {[%emt 0:04:19]} (18... e4 {keeps more tension.} 19. hxg6 Bg4 20. gxh7+ Kh8) 19. dxe5 {[%emt 0:02:16]} fxe5 {[%emt 0:09:36]} (19... Nxg2 $1 $11 20. Kxg2 fxe5) 20. Bxf4 $16 {[%emt 0:00:14]} exf4 {[%emt 0:00:34]} 21. Nbd4 {[%emt 0:01:46] Strongly threatening Qd3. White is more active.} Rf6 $2 {[%emt 0:02:41] [#]} (21... Bg4 $16) 22. Nb5 $2 {[%emt 0:03:21] A dynamic duo of knights.} (22. Ng5 $18 {and the rest is easy.}) 22... Bb7 {[%emt 0:00:49]} (22... Bb8 $16 {was necessary.}) 23. Qd4 {[%emt 0:02:48]} Bd6 {[%emt 0:01:22]} 24. Nxd6 {[%emt 0:00:44]} Qxd6 {[%emt 0:00:03]} 25. Re5 {[%emt 0:00:29] Prevents Rf5.} h6 {[%emt 0:01:10]} 26. Rae1 {[%emt 0:00:18][%cal Ba1e1,Be1e4,Be4g4,Bg4g3][%mdl 32]} Raf8 {[%emt 0:00:07]} (26... Qc5 $142 27. Nh4 Qxd4 28. cxd4 Bc6) 27. Nh4 $18 {[%emt 0:02:44]} f3 {[%emt 0:01:10]} 28. Nxf3 {[%emt 0:03:47]} ({Don't do} 28. gxf3 Rf4 $18) (28. Ng6 $142 Rxg6 29. hxg6 Qxg6 30. g3) 28... Rf4 {[%emt 0:00:19]} 29. R1e4 {[%emt 0:00:51]} R4f6 {[%emt 0:01:22]} 30. Rg4 {[%emt 0:01:49]} Bc8 {[%emt 0:00:37][%cal Bb7c8,Bc8e6,Be6f7,Bf7d5][%mdl 32]} 31. Rg3 {[%emt 0:00:08]} (31. Qxd5+ $2 {perishes.} Qxd5 $19) 31... Be6 {[%emt 0:01:57]} 32. c4 {[%emt 0:08:49][%cal Bc3c4,Bc4d5][%mdl 32]} Bf7 {[%emt 0:02:38]} 33. cxd5 {[%emt 0:00:37] [#] Threatens to win with Qg4.} Rc8 {[%emt 0:00:08]} 34. Nh4 $2 {[%emt 0:03:36]} (34. Nd2 $18 {and White stays clearly on top. Hoping for Ne4.} Qf8 35. f3) 34... Rc1+ $16 {[%emt 0:00:48]} 35. Kh2 {[%emt 0:00:01] Rf5 would now be deadly.} Rd1 $2 {[%emt 0:00:39][%mdl 8192]} 36. Qg4 $18 {[%emt 0:01:21]} ({Less strong is} 36. Qxd1 Qxe5 37. Qg4 Rxf2 $16) 36... g5 {[%emt 0:00:32]} 37. hxg6 {[%emt 0:00:15]} Bxd5 {[%emt 0:00:20]} 38. Re8+ {[%emt 0:00:46] White mates.} Kg7 {[%emt 0:00:03]} 39. Qxd1 {[%emt 0:00:18]} Rxf2 {[%emt 0:00:07]} 40. Qd4+ {[%emt 0:00:28] Weighted Error Value: White=0.41/Black=0.49.  Loses game:     	---       	Black=2      Missed win:     	White=2     	---        Mistake:       	White=2     	Black=3      Inaccurate:     	White=1     	Black=4      OK:         	White=11    	Black=6      Best:        	White=4     	Black=1} 1-0

[Event "4NCL 2023-2024"]
[Site "Daventry"]
[Date "2024.05.06"]
[Round "11.18"]
[White "Nasuta, Grzegorz"]
[Black "Clarke, Brandon G I"]
[Result "1/2-1/2"]
[ECO "B90"]
[WhiteElo "2547"]
[BlackElo "2505"]
[Annotator "TA"]
[PlyCount "68"]
[EventDate "2023.11.11"]
[EventType "team-tourn"]
[EventCountry "ENG"]
[SourceTitle "playchess.com"]
[Source "ChessBase"]
[SourceQuality "1"]
[TimeControl "40/6000+30:3000+30"]

{[%evp 23,68,18,46,43,47,66,63,65,84,91,133,23,31,45,30,18,52,66,325,331,481,494,495,473,491,464,425,-58,-61,-68,-64,-74,-50,-45,-57,-51,-52,-84,-8,-134,0,0,0,-145,0,0,0]} 1. e4 {[%emt 0:06:22]} c5 {[%emt 0:00:12]} 2. Nf3 {[%emt 0:00:05]} d6 {[%emt 0:00:05]} 3. d4 {[%emt 0:00:09]} cxd4 {[%emt 0:00:07]} 4. Nxd4 {[%emt 0:00:03]} Nf6 {[%emt 0:00:09]} 5. Nc3 {[%emt 0:00:05]} a6 {[%emt 0:00:36]} 6. f3 {[%emt 0:01:12]} e5 {[%emt 0:00:13]} 7. Nb3 {[%emt 0:00:07]} Be6 {[%emt 0:00:08]} 8. Be3 {[%emt 0:00:06]} Be7 {[%emt 0:01:55]} 9. Qd2 {[%emt 0:00:51]} O-O {[%emt 0:00:19]} 10. O-O-O {[%emt 0:00:12]} Nbd7 {[%emt 0:00:10]} 11. g4 {[%emt 0:00:18][%cal Bg2g4,Bg4g5][%mdl 32]} b5 {[%emt 0:00:06][%cal Bb7b5,Bb5b4][%mdl 32]} 12. g5 {[%emt 0:00:46]} b4 {[%emt 0:00:18]} 13. Ne2 {[%emt 0:00:29]} Nh5 {[%emt 0:01:16]} 14. Ng3 {[%emt 0:00:40]} a5 {[%emt 0:00:28][%cal Ba6a5,Ba5a4,Ba4a3][%mdl 32]} 15. Nxh5 {[%emt 0:00:06] White is slightly better.} a4 {[%emt 0:00:06]} 16. Na1 {[%emt 0:00:05] Black must now prevent Kb1.} Bxa2 {[%emt 0:00:05]} 17. Ng3 {[%emt 0:00:10]} (17. Qxb4 $6 Be6 (17... Bxg5 $2 18. Qa3 $18) (17... d5 18. Qd2 $11) 18. Qd2 a3 $14) (17. Bb5 $1 $16) 17... g6 $1 $11 {[%emt 0:05:13]} 18. h4 {[%emt 0:00:16][%cal Oh4h5] h5! would now be deadly.} (18. Qxb4 $2 d5 (18... Bxg5 $2 19. Bxg5 Qxg5+ 20. Qd2 $18) 19. Qe1 d4 $19 (19... Bxg5 $2 20. exd5 f5 21. Bxg5 $18)) 18... b3 $1 {[%emt 0:02:28] ...bxc2 is the strong threat.} 19. Ne2 {[%emt 0:01:04][%cal Bg3e2,Be2c3,Bc3d5][%mdl 32]} a3 {[%emt 0:01:45] Hoping for ...Qb8.} 20. cxb3 {[%emt 0:04:15]} (20. Nxb3 Bxb3 21. cxb3 a2 $15) 20... Qc7+ $2 {[%emt 0:40:00][%mdl 8192]} (20... Qb8 $1 $14 21. Nc3 Bxb3 22. Nxb3 Qxb3) 21. Nc3 $18 {[%emt 0:03:31] aiming for Bc4.} Rfb8 {[%emt 0:00:42]} (21... d5 {might work better.}) 22. Bc4 {[%emt 0:35:58]} axb2+ {[%emt 0:02:20]} 23. Qxb2 {[%emt 0:41:07]} Bxb3 {[%emt 0:01:07]} 24. Bxb3 {[%emt 0:00:08]} d5 {[%emt 0:00:05]} 25. Nc2 {[%emt 0:06:03] [#] Wards off Ba3} (25. exd5 $2 Ba3 26. Kb1 Bxb2 27. Kxb2 Qc4 $19) (25. Kb1 $18 d4 26. Nd5) 25... Ba3 $1 $15 {[%emt 0:01:22]} 26. Nxd5 {[%emt 0:03:53]} (26. Nxa3 $2 Rxa3 27. Kc2 Rbxb3 28. Qxb3 Rxb3 29. Kxb3 Qc4+ 30. Kb2 d4 $19) 26... Bxb2+ {[%emt 0:02:27]} 27. Kxb2 {[%emt 0:00:02]} Qa5 {[%emt 0:08:32]} 28. Ra1 {[%emt 0:04:41] Prevents Qa2+.} ({Don't go for} 28. Ne7+ $2 Kf8 29. Ra1 Qb5 30. Rxa8 Qxb3+ (30... Rxa8 31. Nd5 $17) 31. Kc1 Rxa8 $19) 28... Qb5 {[%emt 0:00:36]} 29. Ndb4 {[%emt 0:00:06]} Rxa1 {[%emt 0:05:08]} 30. Rxa1 {[%emt 0:00:08]} Qe2 {[%emt 0:00:12]} (30... Nc5 $17 {Threatens to win with ...Nd3+.} 31. Ra3 Nd3+ 32. Nxd3 Qxd3) 31. Kc3 {[%emt 0:00:41] [#]} (31. Ra4 $1 $11) 31... Rc8+ {[%emt 0:07:26]} (31... Qxf3 32. Ra7 Nc5 33. Rxf7 Nxe4+ 34. Kb2 Qxf7 35. Bxf7+ Kxf7 36. Kb3 $17) (31... Nb6 $1 $17 32. Ra5 Rc8+ 33. Kb2 Nc4+ 34. Bxc4 Qxc4) 32. Kb2 $11 {[%emt 0:00:02] Active counter play!} Rb8 {[%emt 0:00:32]} (32... Nf8 $11) 33. Kc3 $17 {[%emt 0:00:01] [#]} Rc8+ {[%emt 0:01:08]} (33... Qxf3 34. Ra7 Nc5 35. Rxf7 Nxe4+ 36. Kb2 Qxf7 37. Ba7 $16) (33... Nb6 $1 $17 34. Ra5 Rc8+ 35. Kb2 Nc4+ 36. Bxc4 Qxc4) 34. Kb2 $11 {[%emt 0:00:02]} Rb8 {[%emt 0:00:07] Blacks defense is rewarded with a draw.   Weighted Error Value: White=0.46/Black=0.39.  Loses game:     	---       	Black=1      Missed win:     	White=1     	---        Mistake:       	White=2     	Black=5      Inaccurate:     	White=1     	Black=1      OK:         	White=7     	Black=5      Best:        	White=6     	Black=3      Strong:       	---       	Black=2      Brilliant:      	---       	Black=1} 1/2-1/2